Cogmind - Beta 16 @@@ ROGUE MODE // 2025.11.02 @ 21:47:07 Player: pointone Result: Destroyed by 31-ZOI(R) with Subdweller Beam Cannon Performance ------------- Evolutions (0) 0 Regions Visited (3) 600 Robots Destroyed (31) 155 Value Destroyed (571) 571 Prototype IDs (2) 40 Alien Tech Used (0) 0 Bonus (21) 21 TOTAL SCORE: 1387 Bonus ------- Follower Combat Kills 21 Cogmind --------- Core Integrity 0/250 Matter 288/300 Energy 196/200 System Corruption 0% Temperature Cool (11) Movement Walking (120) Location -10/Subcaves Parts ------- > --- POWER (1) -------- Subdweller Power Source > --- PROPULSION (2) --- Aluminum Leg Aluminum Leg > --- UTILITY (2) ------ Medium Storage Unit Signal Interpreter > --- WEAPON (2) ------- Beam Cannon Assault Rifle > --- INVENTORY (10) --- Light Treads Light Treads Improved Heat Sink High-capacity Storage Unit High-capacity Storage Unit Subdweller Optics Experimental Sensor Array Authchip [R/Combat] Grenade Launcher Peak State ------------ > --- POWER ------------ Light Nuclear Core > --- PROPULSION ------- Aluminum Leg Aluminum Leg > --- UTILITY ---------- Medium Storage Unit Signal Interpreter > --- WEAPON ----------- Medium Laser Assault Rifle > --- INVENTORY -------- Light Ion Engine Light Treads Light Treads Improved Heat Sink High-capacity Storage Unit High-capacity Storage Unit Experimental Sensor Array Transport Network Coupler Authchip [R/Combat] Beam Cannon [Rating: 11] Favorites ----------- Power Light Nuclear Core Engine Light Ion Engine Power Core Light Nuclear Core Propulsion Aluminum Leg Leg Aluminum Leg Utility Medium Storage Unit Device Heat Sink Storage Medium Storage Unit Processor Signal Interpreter Weapon Assault Rifle Energy Gun Medium Laser Energy Cannon Beam Cannon Ballistic Gun Assault Rifle Build | -11 -10 -10 -10 ------- Run | Yrd Mat Min Sub Slots Evolved . | . . . . Power . | . . . . Propulsion . | . . . . Utility . | . . . . Weapon . | . . . . Parts Attached 20 | 6 12 . 2 Power 4 | 1 2 . 1 Engine 2 | 1 . . 1 Core 2 | . 2 . . Reactor . | . . . . Propulsion 6 | 2 4 . . Treads . | . . . . Leg 6 | 2 4 . . Wheel . | . . . . Hover . | . . . . Flight . | . . . . Utility 4 | 1 3 . . Device 2 | 1 1 . . Storage 1 | . 1 . . Processor 1 | . 1 . . Hackware . | . . . . Protection . | . . . . Artifact . | . . . . Weapon 6 | 2 3 . 1 Energy Gun 1 | . 1 . . Energy Cannon 1 | . . . 1 Ballistic Gun 4 | 2 2 . . Ballistic Cannon . | . . . . Launcher . | . . . . Special Weapon . | . . . . Impact Weapon . | . . . . Slashing Weapon . | . . . . Piercing Weapon . | . . . . Special Melee Weapon . | . . . . Unidentified Prototypes . | . . . . Parts Lost 3 | . 1 . 2 Power 1 | . . . 1 Propulsion 1 | . 1 . . Utility . | . . . . Weapon 1 | . . . 1 Highest Loss Streak 1 | . 1 . 1 To Critical Strikes . | . . . . Average Backups 9 | 1 8 9 9 Power . | . 1 1 . Propulsion 1 | . 1 2 2 Utility 4 | . 4 5 5 Weapon 1 | . 1 1 1 Tool/Special . | . . . . Unused Backups 17 | . 5 2 10 Power 1 | . . . 1 Propulsion 3 | . 1 . 2 Utility 9 | . 1 2 6 Weapon 4 | . 3 . 1 Tool/Special . | . . . . Average Slot Usage (%) 99 | . 98 100 99 Engine 3 | . 5 . 7 Core 10 | . 8 14 5 Leg 27 | . 27 28 28 Device 2 | . 6 . . Storage 12 | . 11 14 14 Processor 12 | . 10 14 14 Energy Gun 7 | . 2 14 3 Energy Cannon 1 | . . . 10 Ballistic Gun 19 | . 25 14 14 Peak Build Rating 11 | 6 10 11 11 Average Rating 9 | 3 8 10 10 On Entrance 6 | . 6 10 11 Avg Prop Armor Cover (%) . | . . . . Naked Turns . | . . . . Heaviest Build 20 | 7 19 19 20 Greatest Support 20 | 20 20 20 20 Greatest Overweight (x) 1 | . 1 . . Average Overweight (x) . | . . . . Largest Inventory Capacity 10 | 5 10 10 10 Average Capacity 9 | 5 9 10 10 Most Carried 10 | 5 10 10 10 Average Carried 9 | 2 8 9 9 Final Capacity 10 | 5 10 10 10 Final Carried 10 | 3 10 10 9 Class Distribution -------------------- 100% | Mutant Dominant Class ---------------- Mutant | -10/Materials Mutant | -10/Mines Mutant | -10/Subcaves Resources | -11 -10 -10 -10 ----------- Run | Yrd Mat Min Sub Matter Collected 810 | 262 479 30 39 Remotely . | . . . . Salvage Created 998 | 69 723 173 33 Parts 66 | 4 45 15 2 Haulers Intercepted 2 | . 2 . . Recyclers Shooed 1 | . 1 . . Parts Field Recycled . | . . . . Retrieved Matter . | . . . . Parts Self-Destructed 10 | . . . 10 Prevented . | . . . . Parts Restored . | . . . . Kills | -11 -10 -10 -10 ------- Run | Yrd Mat Min Sub Combat Hostiles Destroyed 15 | 1 12 1 1 Guns 14 | 1 12 1 . Cannons 1 | . . . 1 Classes Destroyed 9 | 2 4 2 1 Worker 6 | 1 4 1 . Builder 2 | . . 2 . Tunneler 2 | . . 2 . Hauler 2 | . 2 . . Recycler 1 | . 1 . . Watcher 3 | . 3 . . Swarmer 3 | . 3 . . Grunt 11 | 1 9 1 . Subdweller 1 | . . . 1 Best Kill Streak 5 | 1 5 2 1 Combat Bots Only 3 | 1 3 1 1 Max Kills in Single Turn 1 | 1 1 1 1 Gunslinging . | . . . . Exploded . | . . . . Melee . | . . . . Uniques/NPCs Destroyed . | . . . . Combat | -11 -10 -10 -10 -------- Run | Yrd Mat Min Sub Hostile Shots Fired 92 | 2 70 3 17 Missed 25 | . 17 1 7 Hits 67 | 2 53 2 10 Projectile 67 | 2 53 2 10 Damage Taken 970 | 22 596 31 321 Core 262 | . 146 . 116 Absorbed by Shields . | . . . . Regen/Repaired (Parts) 68 | . 68 . . Core Remaining (%) 100 | 100 . . . Volleys Fired 106 | 3 81 10 12 Largest 2 | 2 2 2 2 Hottest 80 | 40 70 70 80 Shots Fired 209 | 6 161 20 22 Gun 202 | 6 161 20 15 Cannon 7 | . . . 7 Launcher . | . . . . Special . | . . . . Kinetic 182 | 6 154 10 12 Thermal 27 | . 7 10 10 Explosive . | . . . . Electromagnetic . | . . . . Robot Hit Streak 18 | 1 18 4 4 Robot Miss Streak 5 | 1 5 3 2 Penetration Max . | . . . . Secondary Targets . | . . . . Shots Hit Robots 124 | 3 98 10 13 Core Hits 51 | 3 37 8 3 Critical Kills 1 | . . 1 . Critical Parts Destroyed 1 | . 1 . . Critical Strikes 3 | . 2 1 . Burn 1 | . 1 . . Destroy 2 | . 1 1 . Melee Attacks . | . . . . Impact . | . . . . Slashing . | . . . . Piercing . | . . . . Sneak Attacks . | . . . . Combat Hostiles . | . . . . Follow-up Attacks . | . . . . Damage Inflicted 1432 | 26 1094 127 185 Guns 1364 | 26 1094 127 117 Cannons 68 | . . . 68 Explosions . | . . . . Melee . | . . . . Ramming . | . . . . Kinetic 1248 | 26 1042 76 104 Thermal 184 | . 52 51 81 Explosive . | . . . . Electromagnetic . | . . . . Impact . | . . . . Slashing . | . . . . Piercing . | . . . . Highest Corruption . | . . . . Average Corruption . | . . . . Corruption Purged . | . . . . Corruption Blocked . | . . . . Overload Shots . | . . . . Overflow Damage . | . . . . Projectiles . | . . . . Explosions . | . . . . Melee . | . . . . Knockbacks . | . . . . Impact . | . . . . Kinetic . | . . . . Secondary . | . . . . Self-Inflicted Damage . | . . . . Shots . | . . . . Rammed . | . . . . Targets Rammed . | . . . . Kicked . | . . . . Crushed . | . . . . Highest Temperature 39 | 6 30 39 . Average Temperature 11 | 6 10 14 . Received Heat Transfer 294 | 12 255 18 9 Siege Activations . | . . . . Martial Activations . | . . . . Shielding Activations . | . . . . Robots Disrupted . | . . . . Combat Hostiles . | . . . . Robots Corrupted . | . . . . Combat Hostiles . | . . . . Parts Fried . | . . . . Impact Corruptions . | . . . . Robots Melted . | . . . . Combat Hostiles . | . . . . Parts Melted 1 | . 1 . . Heat Transferred 555 | . 222 148 185 Parts Sabotaged . | . . . . Parts Stolen . | . . . . Parts Stripped . | . . . . Power Chain Reactions . | . . . . Alert | -11 -10 -10 -10 ------- Run | Yrd Mat Min Sub Maximum Alert Level . | . . . . Low Security (%) 100 | 100 100 100 . Level 1 . | . . . . Level 2 . | . . . . Level 3 . | . . . . Level 4 . | . . . . Level 5 . | . . . . High Security . | . . . . Max Security . | . . . . Peak Influence 90 | 20 90 76 . Initial 6 | . 6 6 . Average 19 | 2 32 7 . Influence Increases 649 | 25 416 178 30 Destroy 0b10 Robot/C 360 | 20 240 100 . Destroy 0b10 Robot/NC 85 | 5 50 30 . Destroy Leader 80 | . 60 20 . Allied During Kill 12 | . . 12 . Successful Hack 21 | . 21 . . Destroy Structure 1 | . . 1 . Lose Combat Pursuer 90 | . 45 15 30 Influence Decreases 649 | 15 410 192 32 Entered New Map 16 | . 4 10 2 Time Decay 603 | 15 396 162 30 Lost Part 10 | . 10 . . Lost Ally 20 | . . 20 . Squads Dispatched 2 | . 2 . . Investigation . | . . . . Extermination . | . . . . Reinforcement 2 | . 2 . . Assault . | . . . . Garrison . | . . . . Intercept . | . . . . Searches Triggered . | . . . . Construction Impeded . | . . . . Haulers Reinforced . | . . . . Active Scanning Responses . | . . . . Cargo Convoy Interrupts . | . . . . Stealth | -11 -10 -10 -10 --------- Run | Yrd Mat Min Sub Distress Signals 2 | . 2 . . Communications Jammed . | . . . . Distress Signals . | . . . . Times Spotted 40 | 1 28 3 8 Peak Tracking Total 4 | 1 4 1 3 Tactical Retreats 4 | . 2 1 1 Traps | -11 -10 -10 -10 ------- Run | Yrd Mat Min Sub Traps Triggered 5 | . 2 . 3 Indirectly . | . . . . Trap Hack Attempts . | . . . . Triggered . | . . . . Disarmed . | . . . . Reprogrammed . | . . . . Reused . | . . . . Traps Extracted . | . . . . Installed . | . . . . Triggered . | . . . . Machines | -11 -10 -10 -10 ---------- Run | Yrd Mat Min Sub Machines Disabled . | . . . . Max in Single Turn . | . . . . Machines Repaired . | . . . . Machines Dismantled . | . . . . Machines Sabotaged . | . . . . Overloaded Fab Kills . | . . . . Hacking | -11 -10 -10 -10 --------- Run | Yrd Mat Min Sub Machines Accessed 9 | . 8 . 1 Terminals 5 | . 5 . . Fabricators . | . . . . Repair Stations 1 | . 1 . . Recycling Units 2 | . 2 . . Scanalyzers . | . . . . Garrison Access . | . . . . Total Hacks 21 | . 17 . 4 Successful 14 | . 10 . 4 Failed 7 | . 7 . . Catastrophic 1 | . 1 . . Database Lockouts . | . . . . Manual 1 | . 1 . . Terminals 11 | . 11 . . Fabricators . | . . . . Repair Stations 2 | . 2 . . Recycling Units 4 | . 4 . . Scanalyzers . | . . . . Garrison Access . | . . . . Terminal Hacks 9 | . 5 . 4 Record 5 | . 1 . 4 Prototype ID Bank 1 | . 1 . . Emergency Access Points 1 | . 1 . . Alert Level 1 | . 1 . . Locate Traps 1 | . 1 . . Fabricator Hacks . | . . . . Repair Station Hacks 2 | . 2 . . Scan Component 1 | . 1 . . Repair 1 | . 1 . . Recycling Unit Hacks 3 | . 3 . . Report Inventory 2 | . 2 . . Retrieve Components 1 | . 1 . . Scanalyzer . | . . . . Garrison Access Hacks . | . . . . Unauthorized Hacks . | . . . . Terminals . | . . . . Fabricators . | . . . . Repair Stations . | . . . . Recycling Units . | . . . . Scanalyzers . | . . . . Garrison Access . | . . . . Data Cores Recovered . | . . . . Used . | . . . . Hacking Detections 8 | . 8 . . Full Trace Events . | . . . . Feedback Events . | . . . . Feedback Blocked . | . . . . Robot Schematics Acquired . | . . . . Robots Built . | . . . . Authchips . | . . . . Time . | . . . . Total Robot Build Rating . | . . . . Part Schematics Acquired . | . . . . Parts Built . | . . . . Authchips . | . . . . Time . | . . . . Total Part Build Rating . | . . . . Part Studies Acquired . | . . . . Parts Repaired 1 | . 1 . . Time 26 | . 26 . . Parts Recycled . | . . . . Recycled Matter . | . . . . Retrieved Matter . | . . . . Retrieved Components 4 | . 4 . . Parts Scanalyzed . | . . . . Part Schematics Acquired . | . . . . Parts Damaged . | . . . . Bothacking | -11 -10 -10 -10 ------------ Run | Yrd Mat Min Sub Used RIF Installer . | . . . . Robots Hacked . | . . . . Non-combat . | . . . . Combat . | . . . . Robot Hacks Applied . | . . . . Relay Couplers Released . | . . . . Fabnet Peak Effective % . | . . . . Robots Rewired . | . . . . Allies Hacked . | . . . . Hacks Repelled . | . . . . Allies | -11 -10 -10 -10 -------- Run | Yrd Mat Min Sub Total Allies 3 | . . 3 . Largest Group 3 | . . 3 . Highest-Rated Group 40 | . . 40 . Highest-Rated Ally 16 | . . 16 . Total Orders 3 | . . 3 . ROAM 3 | . . 3 . Ally Attacks 25 | . . 25 . Total Damage 225 | . . 225 . Kills 5 | . . 5 . Allies Corrupted . | . . . . Allies Melted . | . . . . Intel | -11 -10 -10 -10 ------- Run | Yrd Mat Min Sub Active Infowar (turns) 206 | . 206 . . Seismic 206 | . 206 . . Robot Analysis Total . | . . . . Derelict Logs Recovered 1 | . . 1 . Drone Launches . | . . . . Drone Recoveries . | . . . . Exploration | -11 -10 -10 -10 ------------- Run | Yrd Mat Min Sub Turns Passed 3031 | 83 1282 1274 392 Spaces Moved 2122 | 75 741 1026 280 Core 41 | 41 . . . Treads . | . . . . Legs 2081 | 34 741 1026 280 Wheels . | . . . . Hover . | . . . . Flight . | . . . . Fastest Speed 50 | 50 120 120 120 Average Speed 118 | 81 120 120 120 Slowest Speed 190 | 120 190 120 120 Overloaded Moves . | . . . . Propulsion Burnouts . | . . . . Robots Hopped . | . . . . Potential Cave-ins . | . . . . Cave-ins Triggered . | . . . . Exploration Rate (%) 57 | 7 97 102 24 Regions Visited 3 Branch Regions 2 Pre-discovered Areas 1 | . . 1 . Known Exits Taken 2 | . 1 1 . Unknown Exits Taken 1 | 1 . . . Scrap Searched 1 | . . 1 . Spaces Dug . | . . . . Terrain Destroyed . | . . . . Melee . | . . . . Projectile . | . . . . AOE . | . . . . Terrain Rammed . | . . . . Walls Destroyed . | . . . . Machines Disabled . | . . . . Actions | -11 -10 -10 -10 --------- Run | Yrd Mat Min Sub Total 2445 | 91 992 1050 312 Wait 149 | . 123 11 15 Move 2119 | 74 740 1025 280 Hop . | . . . . Pick Up 28 | 8 16 2 2 Fast Attach 6 | 1 5 . . Attach 10 | 5 3 . 2 Detach 1 | . 1 . . Swap 8 | . 8 . . Drop 18 | . 15 2 1 Fire 106 | 3 81 10 12 Melee . | . . . . Ram . | . . . . Kick . | . . . . Crush . | . . . . Escape Stasis . | . . . . Rewire . | . . . . Trap . | . . . . Miscellaneous . | . . . . Route ------- -11/Scrapyard -10/Materials (discovered 4 exits: *Mat x3 / *Min) -10/Mines (discovered 3 exits: *Mat x2 / *Sub) -10/Subcaves (discovered 3 exits: Mat x2 / Rec) History --------- Turn | Location | Event 2 | -11/Scrapyard | Met Revision 17 60 | -11/Scrapyard | Discovered new exit (range 8) 84 | -11/Scrapyard | Entered Materials 316 | -10/Materials | Build established: Mutant 380 | -10/Materials | Discovered new exit (range 15) 461 | -10/Materials | Identified exit to Mines 739 | -10/Materials | Discovered new exit (range 8) 745 | -10/Materials | Identified exit to Materials 856 | -10/Materials | Discovered exit to Materials (range 16) 987 | -10/Materials | Core integrity fell below 50% 1113 | -10/Materials | Discovered exit to Materials (range 4) 1176 | -10/Materials | Repaired Assault Rifle? 1366 | -10/Materials | Entered Mines 1370 | -10/Mines | Assisted by bots powering up and referring to "LRC-V3" 1390 | -10/Mines | Discovered exit to Materials (range 7) 1482 | -10/Mines | Found a damaged Exp. Sensor Array with a note attached 1485 | -10/Mines | Found Prototype Device 1748 | -10/Mines | YI-UF0 nonchalantly dropped a Grenade Launcher on the ground 1762 | -10/Mines | Learned location of Storage (-9) 1922 | -10/Mines | Discovered exit to Materials (range 6) 2528 | -10/Mines | Discovered new exit (range 6) 2533 | -10/Mines | Identified exit to Subcaves 2640 | -10/Mines | Entered Subcaves 2641 | -10/Subcaves | Approached by a straggling Scientist 2641 | -10/Subcaves | Identified exit to Recycling 2786 | -10/Subcaves | Core integrity fell below 20% 2825 | -10/Subcaves | Visited Clippyterm 2828 | -10/Subcaves | Identified exit to Materials 2828 | -10/Subcaves | Learned Factory trap positions 3032 | -10/Subcaves | Destroyed by 31-ZOI(R) with Subdweller Beam Cannon Last Messages --------------- help? Data stored: Factory trap records. >>Record! "Permadeath" It looks like you're defining "roguelike," quit while you're ahead. Please. 02830_ Flight Unit fries itself beyond repair. 02836_ Lgt. Ion Engine fries itself beyond repair. 02890_ HV Slug penetrates NH-1X7(R). 02890_ NH-1X7(R) suffers critical hit (Destroy). 02890_ NH-1X7(R) knocked back. 02894_ NH-1X7(R) affixes Scrap Shield Fragment to Scrap Shield. 02896_ HV Slug penetrates NH-1X7(R). 02896_ NH-1X7(R) suffers critical hit (Destroy). 02896_ NH-1X7(R) knocked back. 02896_ HV Slug penetrates NH-1X7(R). 02899_ NH-1X7(R) destroyed. 03030_ ZY-K0C(h) destroyed. Map ----- +----------------------------------------------------+ | ?????????????????????????????????????????????????? | | ?????????????????????????????????????????????????? | | ?????????????????????????????????????????????????? | | ?????????????????????????????????????????????????? | | ?????????????????????????????????????????????????? | | ?????????????????????????????????????????????????? | | ?????????????????????????????????????????????????? | | ?????????????????????????????????????????????????? | | ?????????????????????????????????????????????????? | | ?????????????????????????????????????????????????? | | ?????????????????????????????????????????????????? | | ????????????????????? ??????????????????????????? | | ???????????????????? ??????????????????????????? | | ???????????????????? ??????????????????????????? | | ???????????????????? ##????????????????????????? | | ???????????????????? #????????????????????????? | | ????????????????????? #????????????????????????? | | ????????????????????? #????????????????????????? | | #????? ?????????????? ###??????????????????????? | | #?????? ????????????# ##?????????????????????? | | #??????? ? ???####### ??????????????????????? | | ##?????? # "?# ## ???????????????????????? | | #??????? ?# ## #????????????????????????? | | "####?????# ## #????????? #?????????????? | | """#####??# # #####??? #??????????????? | | """"#??#"" @ ## #???????????????? | | #??#""""" ! R #????????????????? | | # #??#""""" ### !%! ;#???????????????? | | ####???#"# ##?## [! ##???????????????? | | ##?######## #???###########????????????????? | | #### """" #???????????######?????????????? | | # ## ##????#####?## #?????????????? | | ## ## #????## ### ##?????????????? | | ## ###### ##??????????????? | | # ## #???????????????? | | #### ## #???????????